fUSD/lending_fUSD_20250716
["ID","MTS","AMOUNT","RATE_DAILY","PERIOD"]
[372573732,1752688251273,-4790.0,0.00021077,2]
[372573736,1752688251306,-3873.99025623,0.00021077,2]
[372573738,1752688251315,-150.0,0.00021187,2]
[372573740,1752688251324,-150.0,0.0002133,2]
[372573742,1752688251334,-150.0,0.00021464,2]
[372573744,1752688251344,-258.41282353,0.00021521,2]
[372573746,1752688251354,-346.29415,0.00021521,2]
[372573748,1752688251363,-200.0,0.00021521,5]
[372573750,1752688251373,-179.7,0.00021521,2]
[372573752,1752688251383,-151.0,0.00021523,2]
[372573754,1752688251392,-151.0,0.00021523,2]
[372573756,1752688251402,-500.0,0.00021528,2]
[372573758,1752688251411,-150.0,0.00021528,2]
[372573760,1752688251421,-272.74777024,0.00021528,2]
[372573767,1752688251472,-500.0,0.00020733,2]
[372573769,1752688251482,-227.25222976,0.00021528,2]
[372573771,1752688251492,-150.0,0.00021528,2]
[372573773,1752688251502,-500.0,0.00021528,2]
[372573775,1752688251511,-234.01,0.00021537,2]
[372573777,1752688251521,-150.0,0.00021548,2]
[372573779,1752688251530,-1279.07,0.0002155,2]
[372573781,1752688251540,-1000.0,0.00021552,2]
[372573783,1752688251549,-154.852633,0.00021554,2]
[372573784,1752688251558,-151.0,0.00021554,2]
[372573786,1752688251568,-151.0,0.00021554,2]
[372573787,1752688251577,-1284.8620498,0.00021555,5]
[372573789,1752688251587,-4599.0,0.00021559,2]
[372573791,1752688251597,-150.0,0.00021569,2]
[372573793,1752688251607,-397.0,0.00021583,2]
[372573795,1752688251616,-151.0,0.00021588,2]
[372573797,1752688251626,-151.0,0.00021588,2]
[372573799,1752688251635,-204.088348,0.00021588,2]
[372573801,1752688251644,-204.088348,0.00021588,2]
[372573803,1752688251654,-160.189444,0.00021588,2]
[372573805,1752688251663,-151.0,0.00021588,2]
[372573807,1752688251674,-341.565072,0.00021588,2]
[372573809,1752688251684,-379.853905,0.00021588,2]
[372573811,1752688251695,-379.853905,0.00021588,2]
[372573813,1752688251704,-150.0,0.00021591,2]
[372573815,1752688251714,-2000.0,0.000216,2]
[372573817,1752688251724,-151.0,0.000216,2]
[372573819,1752688251733,-152.256073,0.000216,2]
[372573821,1752688251743,-151.0,0.000216,2]
[372573823,1752688251752,-151.0,0.000216,2]
[372573825,1752688251761,-151.0,0.000216,2]
[372573827,1752688251772,-205.277417,0.000216,2]
[372573829,1752688251781,-151.0,0.000216,2]
[372573831,1752688251791,-151.0,0.000216,2]
[372573833,1752688251800,-205.277417,0.000216,2]
[372573834,1752688251810,-151.0,0.000216,2]
[372573836,1752688251819,-151.0,0.000216,2]
[372573838,1752688251828,-544.663826,0.000216,2]
[372573840,1752688251838,-544.663826,0.000216,2]
[372573842,1752688251848,-154.456519,0.000216,2]
[372573844,1752688251858,-154.456519,0.000216,2]
[372573846,1752688251867,-174.933334,0.000216,2]
[372573848,1752688251877,-250.0,0.000216,2]
[372573850,1752688251886,-250.0,0.000216,2]
[372573852,1752688251897,-250.0,0.000216,2]
[372573854,1752688251906,-250.0,0.000216,2]
[372573856,1752688251916,-250.0,0.000216,2]
[372573858,1752688251925,-250.0,0.000216,2]
[372573860,1752688251935,-250.0,0.000216,2]
[372573862,1752688251944,-250.0,0.000216,2]
[372573864,1752688251955,-250.0,0.000216,2]
[372573866,1752688251964,-250.0,0.000216,2]
[372573868,1752688251974,-250.0,0.000216,2]
[372573870,1752688251984,-171.6,0.000216,2]
[372573872,1752688251998,-152.38065,0.000216,2]
[372573874,1752688252007,-151.0,0.000216,2]
[372573876,1752688252017,-151.0,0.000216,2]
[372573878,1752688252027,-151.0,0.000216,2]
[372573880,1752688252036,-151.0,0.000216,2]
[372573882,1752688252049,-151.0,0.000216,2]
[372573884,1752688252059,-264.889981,0.000216,2]
[372573886,1752688252068,-264.889981,0.000216,2]
[372573888,1752688252078,-1905.51355826,0.000216,2]
[372573890,1752688252087,-1905.5135581,0.000216,2]
[372573892,1752688252098,-1905.5135581,0.000216,2]
[372573894,1752688252107,-1905.5135581,0.000216,2]
[372573896,1752688252118,-1905.5135581,0.000216,2]
[372573898,1752688252128,-1905.5135581,0.000216,2]
[372573900,1752688252137,-1905.5135581,0.000216,2]
[372573902,1752688252146,-1905.5135581,0.000216,2]
[372573904,1752688252156,-1905.5135581,0.000216,2]
[372573906,1752688252165,-1905.5135581,0.000216,2]
[372573908,1752688252175,-1905.5135581,0.000216,2]
[372573910,1752688252184,-1905.5135581,0.000216,2]
[372573911,1752688252193,-1905.5135581,0.000216,2]
[372573913,1752688252205,-1905.5135581,0.000216,2]
[372573915,1752688252214,-1905.5135581,0.000216,2]
[372573917,1752688252224,-397.0,0.00021608,2]
[372573919,1752688252233,-152.0,0.0002166,5]
[372573921,1752688252243,-1408.0,0.0002166,2]
[372573923,1752688252252,-1284.8620498,0.00021693,5]
[372573925,1752688252261,-250.0,0.000217,2]
[372573927,1752688252270,-250.0,0.000217,2]
[372573929,1752688252280,-250.0,0.000217,2]
[372573931,1752688252289,-250.0,0.000217,2]
[372573933,1752688252299,-286.213162,0.00021757,2]
[372573935,1752688252309,-286.213162,0.00021757,2]
[372573937,1752688252319,-151.0,0.00021757,2]
[372573939,1752688252328,-150.0,0.00021759,2]
[372573941,1752688252337,-150.0,0.00021762,2]
[372573943,1752688252347,-150.0,0.00021774,2]
[372573945,1752688252356,-397.0,0.00021779,2]
[372573947,1752688252366,-5888.0,0.00021781,2]
[372573948,1752688252375,-167.92,0.00021785,2]
[372573950,1752688252386,-150.12,0.00021786,2]
[372573952,1752688252397,-150.0,0.00021786,2]
[372573954,1752688252407,-152.12858549,0.0002179,2]
[372573956,1752688252416,-500.0,0.0002179,2]
[372573958,1752688252426,-439.0,0.0002179,2]
[372573960,1752688252436,-150.0,0.0002179,2]
[372573962,1752688252445,-500.0,0.0002179,2]
[372573965,1752688252456,-503.61297875,0.0002179,2]
[372573967,1752688252466,-722.0,0.0002179,2]
[372573968,1752688252475,-500.0,0.0002179,2]
[372573970,1752688252486,-500.0,0.0002179,2]
[372573973,1752688252496,-500.0,0.0002179,2]
[372573974,1752688252506,-500.0,0.0002179,2]
[372573977,1752688252516,-500.0,0.0002179,2]
[372573979,1752688252526,-1657.0,0.0002179,2]
[372573981,1752688252535,-516.0,0.0002179,2]
[372573983,1752688252545,-500.0,0.0002179,2]
[372573985,1752688252556,-250.0,0.0002179,2]
[372573987,1752688252565,-2253.0,0.0002179,2]
[372573988,1752688252575,-500.0,0.0002179,2]
[372573991,1752688252587,-151.0,0.0002179,2]
[372573992,1752688252597,-151.0,0.0002179,2]
[372573994,1752688252606,-354.108308,0.0002179,2]
[372573996,1752688252615,-354.108308,0.0002179,2]
[372573998,1752688252624,-151.595603,0.0002179,2]
[372574000,1752688252634,-151.0,0.0002179,2]
[372574002,1752688252643,-600.0,0.000218,7]
[372574005,1752688252653,-1798.11,0.000218,2]
[372574007,1752688252663,-2000.0,0.000218,2]
[372574009,1752688252672,-17000.28636162,0.000218,2]
[372574010,1752688252682,-6369.11191909,0.000218,2]
[372574012,1752688252691,-151.0,0.000218,2]
[372574014,1752688252702,-151.0,0.000218,2]
[372574016,1752688252711,-151.0,0.000218,2]
[372574018,1752688252720,-173.524588,0.000218,2]
[372574020,1752688252730,-173.524588,0.000218,2]
[372574022,1752688252739,-151.0,0.000218,2]
[372574024,1752688252749,-151.0,0.000218,2]
[372574026,1752688252758,-151.0,0.000218,2]
[372574028,1752688252767,-175.878409,0.000218,2]
[372574030,1752688252777,-175.878409,0.000218,2]
[372574032,1752688252786,-250.0,0.000218,2]
[372574034,1752688252796,-250.0,0.000218,2]
[372574036,1752688252806,-250.0,0.000218,2]
[372574038,1752688252815,-250.0,0.000218,2]
[372574040,1752688252824,-2070.128622,0.000218,2]
[372574042,1752688252833,-2070.128622,0.000218,2]
[372574044,1752688252844,-151.0,0.000218,2]
[372574046,1752688252853,-151.0,0.000218,2]
[372574048,1752688252862,-213.424645,0.000218,2]
[372574050,1752688252872,-213.424645,0.000218,2]
[372574052,1752688252882,-150.0,0.000218,2]
[372574054,1752688252891,-150.0,0.00021801,2]
[372574056,1752688252900,-414.36179991,0.00021802,2]
[372574058,1752688252910,-200.0,0.00021802,2]
[372574060,1752688252919,-298.50941207,0.00021802,2]
[372574062,1752688252929,-251.06229409,0.00021802,2]
[372574064,1752688252938,-500.0,0.00021802,2]
[372574066,1752688252949,-150.0,0.00021829,2]
[372574068,1752688252958,-1284.8620498,0.00021831,6]
[372574070,1752688252970,-397.0,0.00021844,2]
[372574072,1752688252981,-4000.0,0.00021844,3]
[372574074,1752688252990,-151.0,0.00021868,2]
[372574076,1752688253000,-151.0,0.00021868,2]
[372574078,1752688253009,-190.08215,0.00021868,2]
[372574080,1752688253019,-190.08215,0.00021868,2]
[372574082,1752688253028,-796.08945683,0.00021868,2]
[372574084,1752688253038,-150.0,0.0002187,2]
[372574086,1752688253051,-356.65,0.00021877,2]
[372574088,1752688253061,-1410.73006328,0.0002188,4]
[372574090,1752688253070,-1410.73006328,0.0002188,4]
[372574092,1752688253080,-1410.73006328,0.0002188,4]
[372574094,1752688253090,-1410.73006328,0.0002188,4]
[372574096,1752688253100,-1410.73006328,0.0002188,4]
[372574098,1752688253111,-1410.73006328,0.0002188,4]
[372574100,1752688253121,-1410.73006328,0.0002188,4]
[372574102,1752688253131,-1410.73006328,0.0002188,4]
[372574104,1752688253141,-1410.73006328,0.0002188,4]
[372574106,1752688253150,-1410.73006328,0.0002188,4]
[372574108,1752688253160,-1410.73006328,0.0002188,4]
[372574110,1752688253170,-1410.73006328,0.0002188,4]
[372574112,1752688253180,-1410.73006328,0.0002188,4]
[372574114,1752688253191,-1410.73006328,0.0002188,4]
[372574116,1752688253202,-1410.73006328,0.0002188,4]
[372574118,1752688253212,-1410.73006328,0.0002188,4]
[372574120,1752688253221,-1410.73006328,0.0002188,4]
[372574122,1752688253230,-1410.73006328,0.0002188,4]
[372574124,1752688253240,-1410.73006328,0.0002188,4]
[372574126,1752688253250,-1410.73,0.0002188,4]
[372574128,1752688253259,-1205.29726266,0.0002188,4]
[372574130,1752688253269,-1205.29726266,0.0002188,4]
[372574132,1752688253278,-1205.29726266,0.0002188,4]
[372574134,1752688253288,-1205.29726266,0.0002188,4]
[372574136,1752688253298,-1205.29726266,0.0002188,4]
[372574138,1752688253307,-1205.29726266,0.0002188,4]
[372574140,1752688253317,-1205.29726266,0.0002188,4]
[372574142,1752688253326,-1205.29726266,0.0002188,4]
[372574144,1752688253336,-1205.29726266,0.0002188,4]
[372574146,1752688253345,-1205.29726266,0.0002188,4]
[372574148,1752688253355,-1205.29726266,0.0002188,4]
[372574150,1752688253364,-1205.29726266,0.0002188,4]
[372574152,1752688253374,-1205.29726266,0.0002188,4]
[372574154,1752688253383,-1205.29726266,0.0002188,4]
[372574156,1752688253393,-1205.29726266,0.0002188,4]
[372574158,1752688253403,-1205.29726266,0.0002188,4]
[372574159,1752688253412,-1205.29726266,0.0002188,4]
[372574161,1752688253424,-1205.29726266,0.0002188,4]
[372574163,1752688253433,-1205.29726266,0.0002188,4]
[372574165,1752688253442,-1205.29,0.0002188,4]
[372574167,1752688253453,-952.34931756,0.0002188,4]
[372574169,1752688253463,-952.34931756,0.0002188,4]
[372574171,1752688253472,-952.34931756,0.0002188,4]
[372574173,1752688253481,-952.34931756,0.0002188,4]
[372574175,1752688253491,-952.34931756,0.0002188,4]
[372574177,1752688253501,-952.34931756,0.0002188,4]
[372574179,1752688253510,-952.34931756,0.0002188,4]
[372574181,1752688253519,-952.34931756,0.0002188,4]
[372574183,1752688253530,-952.34931756,0.0002188,4]
[372574185,1752688253542,-952.34931756,0.0002188,4]
[372574187,1752688253555,-952.34931756,0.0002188,4]
[372574189,1752688253564,-952.34931756,0.0002188,4]
[372574191,1752688253573,-952.34931756,0.0002188,4]
[372574193,1752688253582,-952.34931756,0.0002188,4]
[372574195,1752688253592,-952.34931756,0.0002188,4]
[372574197,1752688253601,-952.34931756,0.0002188,4]
[372574199,1752688253611,-952.34931756,0.0002188,4]
[372574201,1752688253621,-952.34931756,0.0002188,4]
[372574203,1752688253630,-952.34931756,0.0002188,4]
[372574205,1752688253639,-952.34,0.0002188,4]
[372574207,1752688253649,-299.3,0.00021885,2]
[372574208,1752688253658,-681.42129191,0.00021886,2]
[372574211,1752688253668,-150.0,0.00021886,2]
[372574212,1752688253678,-150.0,0.00021895,2]
[372574214,1752688253688,-1000.0,0.00021899,2]
[372574217,1752688253699,-2000.0,0.00021899,2]
[372574218,1752688253709,-600.0,0.000219,7]
[372574221,1752688253719,-2013.01,0.000219,2]
[372574222,1752688253729,-250.0,0.000219,2]
[372574224,1752688253738,-250.0,0.000219,2]
[372574226,1752688253747,-250.0,0.000219,2]
[372574228,1752688253756,-250.0,0.000219,2]
[372574230,1752688253766,-250.0,0.000219,2]
[372574232,1752688253775,-250.0,0.000219,2]
[372574234,1752688253784,-250.0,0.000219,2]
[372574236,1752688253794,-250.0,0.000219,2]
[372574238,1752688253803,-250.0,0.000219,2]
[372574240,1752688253813,-250.0,0.000219,2]
[372574242,1752688253823,-2000.0,0.000219,2]
[372574244,1752688253834,-150.0,0.00021904,2]
[372574246,1752688253843,-150.0,0.00021905,2]
[372574248,1752688253852,-150.0,0.00021912,2]
[372574250,1752688253862,-4838.6373951,0.00021916,7]
[372574252,1752688253872,-150.8069892,0.00021916,2]
[372574254,1752688253882,-176.752998,0.00021916,2]
[372574256,1752688253891,-176.752998,0.00021916,2]
[372574258,1752688253901,-16410.91913591,0.00021917,2]
[372574260,1752688253911,-661519.49581323,0.00021917,2]
[372574262,1752688253921,-69540.26504483,0.00021917,2]
[372574264,1752688253930,-460.0,0.00021917,2]
[372574266,1752688253939,-151.0,0.00021917,2]
[372574268,1752688253949,-151.0,0.00021917,2]
[372574270,1752688253958,-151.0,0.00021917,2]
[372574272,1752688253968,-151.0,0.00021917,2]
[372574274,1752688253977,-151.0,0.00021917,2]
[372574276,1752688253986,-151.0,0.00021917,2]
[372574278,1752688253997,-269.564517,0.00021917,2]
[372574280,1752688254008,-151.0,0.00021917,2]
[372574282,1752688254018,-151.0,0.00021917,2]
[372574284,1752688254028,-151.44344,0.00021917,2]
[372574286,1752688254038,-151.0,0.00021917,2]
[372574288,1752688254052,-151.0,0.00021917,2]
[372574290,1752688254062,-151.0,0.00021917,2]
[372574292,1752688254072,-151.0,0.00021917,2]
[372574294,1752688254082,-151.0,0.00021917,2]
[372574296,1752688254093,-151.0,0.00021917,2]
[372574298,1752688254102,-151.0,0.00021917,2]
[372574300,1752688254111,-286.213162,0.00021917,2]
[372574302,1752688254123,-286.213162,0.00021917,2]
[372574304,1752688254132,-286.213162,0.00021917,2]
[372574306,1752688254141,-286.213162,0.00021917,2]
[372574308,1752688254151,-151.0,0.00021917,2]
[372574310,1752688254160,-151.0,0.00021917,2]
[372574312,1752688254169,-151.0,0.00021917,2]
[372574314,1752688254178,-151.0,0.00021917,2]
[372574316,1752688254187,-151.0,0.00021917,2]
[372574318,1752688254197,-151.0,0.00021917,2]
[372574320,1752688254209,-151.0,0.00021917,2]
[372574322,1752688254218,-151.0,0.00021917,2]
[372574324,1752688254228,-151.0,0.00021917,2]
[372574326,1752688254237,-151.0,0.00021917,2]
[372574328,1752688254246,-151.0,0.00021917,2]
[372574330,1752688254256,-151.0,0.00021917,2]
[372574332,1752688254265,-151.0,0.00021917,2]
[372574334,1752688254275,-151.0,0.00021917,2]
[372574336,1752688254284,-151.0,0.00021917,2]
[372574338,1752688254293,-151.0,0.00021917,2]
[372574340,1752688254303,-151.0,0.00021917,2]
[372574342,1752688254313,-151.0,0.00021917,2]
[372574344,1752688254322,-151.0,0.00021917,2]
[372574346,1752688254331,-151.0,0.00021917,2]
[372574348,1752688254341,-151.0,0.00021917,2]
[372574350,1752688254350,-151.0,0.00021917,2]
[372574352,1752688254360,-151.0,0.00021917,2]
[372574354,1752688254370,-153.593024,0.00021917,2]
[372574356,1752688254379,-205.277417,0.00021917,2]
[372574358,1752688254389,-151.0,0.00021917,2]
[372574360,1752688254399,-151.0,0.00021917,2]
[372574361,1752688254408,-151.0,0.00021917,2]
[372574362,1752688254418,-205.277417,0.00021917,2]
[372574363,1752688254427,-205.277417,0.00021917,2]
[372574364,1752688254436,-151.0,0.00021917,2]
[372574365,1752688254446,-151.0,0.00021917,2]
[372574366,1752688254459,-151.0,0.00021917,2]
[372574367,1752688254469,-205.277417,0.00021917,2]
[372574368,1752688254479,-205.277417,0.00021917,2]
[372574369,1752688254488,-205.277417,0.00021917,2]
[372574370,1752688254497,-167.779396,0.00021917,2]
[372574371,1752688254507,-151.0,0.00021917,2]
[372574372,1752688254516,-151.0,0.00021917,2]
[372574373,1752688254525,-285.24,0.00021917,2]
[372574374,1752688254535,-183.110979,0.00021917,2]
[372574375,1752688254544,-536.916043,0.00021917,2]
[372574376,1752688254554,-536.916043,0.00021917,2]
[372574378,1752688254563,-536.916043,0.00021917,2]
[372574380,1752688254572,-536.916043,0.00021917,2]
[372574382,1752688254582,-536.916043,0.00021917,2]
[372574384,1752688254591,-536.916043,0.00021917,2]
[372574386,1752688254600,-544.663826,0.00021917,2]
[372574388,1752688254610,-544.663826,0.00021917,2]
[372574390,1752688254619,-544.663826,0.00021917,2]
[372574392,1752688254629,-544.663826,0.00021917,2]
[372574394,1752688254638,-544.663826,0.00021917,2]
[372574396,1752688254649,-544.663826,0.00021917,2]
[372574398,1752688254659,-154.456519,0.00021917,2]
[372574400,1752688254668,-154.456519,0.00021917,2]
[372574417,1752688254827,-154.456519,0.00021917,2]
[372574419,1752688254837,-154.456519,0.00021917,2]
[372574421,1752688254847,-154.456519,0.00021917,2]
[372574423,1752688254856,-154.456519,0.00021917,2]
[372574425,1752688254866,-151.0,0.00021917,2]
[372574427,1752688254875,-151.0,0.00021917,2]
[372574429,1752688254885,-151.0,0.00021917,2]
[372574431,1752688254894,-151.0,0.00021917,2]
[372574433,1752688254904,-297.446186,0.00021917,2]
[372574435,1752688254914,-151.0,0.00021917,2]
[372574437,1752688254924,-152.372545,0.00021917,2]
[372574439,1752688254934,-151.0,0.00021917,2]
[372574441,1752688254944,-151.0,0.00021917,2]
[372574443,1752688254955,-151.0,0.00021917,2]
[372574445,1752688254965,-151.0,0.00021917,2]
[372574447,1752688254974,-153.566613,0.00021917,2]
[372574449,1752688254984,-154.183898,0.00021917,2]
[372574451,1752688254994,-157.380851,0.00021917,2]
[372574453,1752688255004,-151.739921,0.00021917,2]
[372574455,1752688255014,-151.739921,0.00021917,2]
[372574458,1752688255024,-151.739921,0.00021917,2]
[372574460,1752688255035,-154.183898,0.00021917,2]
[372574462,1752688255048,-151.739921,0.00021917,2]
[372574464,1752688255058,-151.739921,0.00021917,2]
[372574466,1752688255067,-151.739921,0.00021917,2]
[372574468,1752688255077,-1750.870059,0.00021917,2]
[372574470,1752688255087,-1766.016045,0.00021917,2]
[372574472,1752688255097,-1833.457451,0.00021917,2]
[372574474,1752688255106,-151.0,0.00021917,2]
[372574476,1752688255117,-151.0,0.00021917,2]
[372574478,1752688255126,-151.0,0.00021917,2]
[372574480,1752688255138,-151.0,0.00021917,2]
[372574482,1752688255148,-151.0,0.00021917,2]
[372574484,1752688255157,-151.0,0.00021917,2]
[372574486,1752688255166,-151.0,0.00021917,2]
[372574488,1752688255176,-151.0,0.00021917,2]
[372574490,1752688255185,-151.0,0.00021917,2]
[372574492,1752688255195,-230.108031,0.00021917,2]
[372574494,1752688255205,-204.088348,0.00021917,2]
[372574496,1752688255216,-204.088348,0.00021917,2]
[372574498,1752688255226,-204.088348,0.00021917,2]
[372574500,1752688255235,-204.088348,0.00021917,2]
[372574502,1752688255245,-448.864062,0.00021917,2]
[372574504,1752688255255,-448.864062,0.00021917,2]
[372574506,1752688255264,-448.864062,0.00021917,2]
[372574508,1752688255274,-448.864062,0.00021917,2]
[372574510,1752688255283,-448.864062,0.00021917,2]
[372574512,1752688255293,-448.864062,0.00021917,2]
[372574514,1752688255305,-151.0,0.00021917,2]
[372574516,1752688255315,-151.0,0.00021917,2]
[372574518,1752688255325,-153.84317,0.00021917,2]
[372574520,1752688255334,-151.0,0.00021917,2]
[372574522,1752688255344,-151.215707,0.00021917,2]
[372574524,1752688255353,-151.0,0.00021917,2]
[372574526,1752688255363,-151.0,0.00021917,2]
[372574529,1752688255373,-151.0,0.00021917,2]
[372574531,1752688255382,-151.0,0.00021917,2]
[372574533,1752688255392,-151.0,0.00021917,2]
[372574534,1752688255401,-151.0,0.00021917,2]
[372574536,1752688255411,-229.753618,0.00021917,2]
[372574539,1752688255422,-229.753618,0.00021917,2]
[372574541,1752688255431,-169.23208,0.00021917,2]
[372574543,1752688255441,-229.753618,0.00021917,2]
[372574544,1752688255450,-229.753618,0.00021917,2]
[372574547,1752688255460,-229.753618,0.00021917,2]
[372574549,1752688255470,-229.753618,0.00021917,2]
[372574551,1752688255479,-229.753618,0.00021917,2]
[372574553,1752688255489,-229.753618,0.00021917,2]
[372574555,1752688255498,-229.753618,0.00021917,2]
[372574557,1752688255507,-229.753618,0.00021917,2]
[372574559,1752688255517,-229.753618,0.00021917,2]
[372574561,1752688255526,-229.753618,0.00021917,2]
[372574563,1752688255536,-341.565072,0.00021917,2]
[372574565,1752688255547,-341.565072,0.00021917,2]
[372574567,1752688255556,-341.565072,0.00021917,2]
[372574569,1752688255565,-341.565072,0.00021917,2]
[372574571,1752688255575,-341.565072,0.00021917,2]
[372574573,1752688255584,-341.565072,0.00021917,2]
[372574575,1752688255594,-341.565072,0.00021917,2]
[372574577,1752688255604,-245.874782,0.00021917,2]
[372574579,1752688255613,-245.874782,0.00021917,2]
[372574581,1752688255623,-245.874782,0.00021917,2]
[372574583,1752688255632,-245.874782,0.00021917,2]
[372574585,1752688255642,-245.874782,0.00021917,2]
[372574587,1752688255651,-245.874782,0.00021917,2]
[372574589,1752688255661,-245.874782,0.00021917,2]
[372574591,1752688255671,-151.0,0.00021917,2]
[372574593,1752688255680,-245.874782,0.00021917,2]
[372574595,1752688255690,-151.0,0.00021917,2]
[372574597,1752688255701,-245.874782,0.00021917,2]
[372574599,1752688255711,-245.874782,0.00021917,2]
[372574601,1752688255721,-245.874782,0.00021917,2]
[372574603,1752688255731,-245.874782,0.00021917,2]
[372574605,1752688255740,-151.0,0.00021917,2]
[372574607,1752688255750,-151.0,0.00021917,2]
[372574609,1752688255760,-151.0,0.00021917,2]
[372574611,1752688255769,-275.226727,0.00021917,2]
[372574613,1752688255778,-195.766121,0.00021917,2]
[372574615,1752688255788,-195.766121,0.00021917,2]
[372574617,1752688255797,-195.766121,0.00021917,2]
[372574619,1752688255807,-195.766121,0.00021917,2]
[372574621,1752688255816,-195.766121,0.00021917,2]
[372574623,1752688255826,-195.766121,0.00021917,2]
[372574625,1752688255835,-195.766121,0.00021917,2]
[372574627,1752688255844,-195.766121,0.00021917,2]
[372574629,1752688255854,-195.766121,0.00021917,2]
[372574631,1752688255863,-195.766121,0.00021917,2]
[372574633,1752688255873,-195.766121,0.00021917,2]
[372574635,1752688255882,-195.766121,0.00021917,2]
[372574637,1752688255892,-379.853905,0.00021917,2]
[372574639,1752688255901,-379.853905,0.00021917,2]
[372574641,1752688255911,-379.853905,0.00021917,2]
[372574643,1752688255921,-379.853905,0.00021917,2]
[372574646,1752688255931,-629.582217,0.00021917,2]
[372574648,1752688255941,-629.582217,0.00021917,2]
[372574650,1752688255951,-629.582217,0.00021917,2]
[372574652,1752688255961,-629.582217,0.00021917,2]
[372574654,1752688255971,-629.582217,0.00021917,2]
[372574656,1752688255980,-629.582217,0.00021917,2]
[372574658,1752688255990,-629.582217,0.00021917,2]
[372574660,1752688256000,-629.582217,0.00021917,2]
[372574662,1752688256009,-629.582217,0.00021917,2]
[372574664,1752688256019,-629.582217,0.00021917,2]
[372574666,1752688256029,-629.582217,0.00021917,2]
[372574668,1752688256041,-629.582217,0.00021917,2]
[372574670,1752688256052,-151.0,0.00021917,2]
[372574672,1752688256062,-151.0,0.00021917,2]
[372574674,1752688256072,-151.0,0.00021917,2]
[372574676,1752688256082,-151.0,0.00021917,2]
[372574678,1752688256092,-151.0,0.00021917,2]
[372574680,1752688256102,-151.0,0.00021917,2]
[372574682,1752688256112,-151.0,0.00021917,2]
[372574684,1752688256123,-151.0,0.00021917,2]
[372574686,1752688256133,-151.0,0.00021917,2]
[372574688,1752688256142,-151.0,0.00021917,2]
[372574690,1752688256153,-151.0,0.00021917,2]
[372574692,1752688256163,-154.134856,0.00021917,2]
[372574694,1752688256172,-151.0,0.00021917,2]
[372574696,1752688256182,-151.0,0.00021917,2]
[372574698,1752688256191,-151.0,0.00021917,2]
[372574700,1752688256203,-151.0,0.00021917,2]
[372574702,1752688256213,-151.0,0.00021917,2]
[372574704,1752688256223,-151.0,0.00021917,2]
[372574706,1752688256233,-151.0,0.00021917,2]
[372574708,1752688256243,-151.0,0.00021917,2]
[372574710,1752688256252,-151.0,0.00021917,2]
[372574712,1752688256262,-151.0,0.00021917,2]
[372574714,1752688256271,-151.0,0.00021917,2]
[372574716,1752688256280,-151.0,0.00021917,2]
[372574718,1752688256288,-151.0,0.00021917,2]
[372574719,1752688256298,-296.580873,0.00021917,2]
[372574720,1752688256307,-151.0,0.00021917,2]
[372574721,1752688256317,-151.0,0.00021917,2]
[372574722,1752688256327,-151.0,0.00021917,2]
[372574723,1752688256336,-151.0,0.00021917,2]
[372574724,1752688256346,-151.0,0.00021917,2]
[372574725,1752688256355,-151.0,0.00021917,2]